[Event "GER-ch Blitz 2019"]
[Site "Magdeburg"]
[Date "2019.05.25"]
[Round "12.8"]
[White "Barzen, Pascal"]
[Black "Svane, Frederik"]
[Result "0-1"]
[ECO "B24"]
[WhiteElo "2292"]
[BlackElo "2342"]
[Annotator "NA"]
[PlyCount "120"]
[EventDate "2019.05.25"]
[EventType "tourn"]
[EventCountry "GER"]
[Tiebreak "Number of wins+Number of black wins"]
[SourceTitle "playchess.com"]
[Source "ChessBase"]
[SourceQuality "1"]
[TimeControl "180+2"]

1. e4 {[%emt 0:00:00]} c5 {[%emt 0:00:00]} 2. Nc3 {[%emt 0:00:00]} Nc6 {
[%emt 0:00:00]} 3. g3 {[%emt 0:00:01]} g6 4. Bg2 Bg7 {[%emt 0:00:01]} 5. d3 {
[%emt 0:00:00]} e6 {[%emt 0:00:02]} 6. Be3 {[%emt 0:00:01]} Nd4 {[%emt 0:00:00]
} 7. f4 {[%emt 0:00:01]} Ne7 {[%emt 0:00:02]} 8. Nf3 {[%emt 0:00:01]} O-O {
[%emt 0:00:08]} 9. O-O {[%emt 0:00:00]} b6 {[%emt 0:00:08]} 10. e5 {[%emt 0:00:
03]} Nxf3+ {[%emt 0:00:43]} 11. Bxf3 {[%emt 0:00:04]} Rb8 {[%emt 0:00:30]} 12.
Ne4 {[%emt 0:00:27]} Nf5 {[%emt 0:00:40]} 13. Bf2 {[%emt 0:00:01]} d5 {[%emt 0:
00:00]} 14. Nd2 {[%emt 0:00:25]} f6 {[%emt 0:00:25]} 15. exf6 {[%emt 0:00:01]}
Qxf6 {[%emt 0:00:04]} 16. c3 {[%emt 0:00:01]} Ba6 {[%emt 0:00:14]} 17. Qc2 {
[%emt 0:00:03]} Qf7 {[%emt 0:00:24]} 18. Rae1 {[%emt 0:00:07]} Rbe8 {[%emt 0:
00:03]} 19. g4 {[%emt 0:00:18]} Nd6 {[%emt 0:00:03]} 20. Bg3 {[%emt 0:00:01]}
Qd7 {[%emt 0:00:08]} 21. Bg2 {[%emt 0:00:05]} c4 {[%emt 0:00:02]} 22. d4 {
[%emt 0:00:02]} b5 {[%emt 0:00:02]} 23. a3 {[%emt 0:00:02]} Bb7 {[%emt 0:00:02]
} 24. Nf3 {[%emt 0:00:01]} a5 {[%emt 0:00:03]} 25. Ne5 {[%emt 0:00:00]} Qc7 {
[%emt 0:00:01]} 26. h4 {[%emt 0:00:05]} Ne4 {[%emt 0:00:03]} 27. Bxe4 {[%emt 0:
00:05]} dxe4 {[%emt 0:00:00]} 28. Qe2 {[%emt 0:00:36]} Bxe5 {[%emt 0:00:02]}
29. fxe5 Rf3 30. Rxf3 {[%emt 0:00:28]} exf3 {[%emt 0:00:01]} 31. Qf2 {[%emt 0:
00:15]} Rf8 {[%emt 0:00:01]} 32. Rd1 {[%emt 0:00:08]} Bd5 {[%emt 0:00:01]} 33.
Kh2 {[%emt 0:00:02]} Qb7 {[%emt 0:00:00]} 34. Rd2 {[%emt 0:00:04]} b4 35. axb4
{[%emt 0:00:00]} axb4 {[%emt 0:00:01]} 36. h5 {[%emt 0:00:03]} gxh5 {[%emt 0:
00:02]} 37. gxh5 {[%emt 0:00:01]} Rf5 {[%emt 0:00:01]} 38. Bh4 {[%emt 0:00:08]}
Rxh5 {[%emt 0:00:01]} 39. Qg3+ {[%emt 0:00:05]} Qg7 {[%emt 0:00:01]} 40. Qxg7+
{[%emt 0:00:02]} Kxg7 41. Kg3 bxc3 {[%emt 0:00:06]} 42. bxc3 {[%emt 0:00:01]}
Rh6 {[%emt 0:00:02]} 43. Bf6+ {[%emt 0:00:01]} Kf7 {[%emt 0:00:01]} 44. Kf4 {
[%emt 0:00:25]} Rg6 {[%emt 0:00:07]} 45. Ra2 {[%emt 0:00:02]} Rg2 {[%emt 0:00:
02]} 46. Ra7+ {[%emt 0:00:01]} Kg6 {[%emt 0:00:02]} 47. Rg7+ {[%emt 0:00:12]}
Kh6 {[%emt 0:00:01]} 48. Rf7 {[%emt 0:00:02]} f2 {[%emt 0:00:02]} 49. Ke3 {
[%emt 0:00:04]} f1=Q {[%emt 0:00:02]} 50. Bg7+ {[%emt 0:00:01]} Rxg7 {[%emt 0:
00:02]} 51. Rxf1 {[%emt 0:00:01]} Rg3+ 52. Kd2 Rd3+ 53. Kc2 Kg7 {[%emt 0:00:07]
} 54. Rf6 {[%emt 0:00:02]} h5 {[%emt 0:00:02]} 55. Rf4 {[%emt 0:00:01]} Kg6 {
[%emt 0:00:02]} 56. Rf6+ {[%emt 0:00:01]} Kg5 {[%emt 0:00:00]} 57. Rf7 {
[%emt 0:00:00]} h4 {[%emt 0:00:01]} 58. Kb2 {[%emt 0:00:01]} h3 {[%emt 0:00:02]
} 59. Ka3 h2 {[%emt 0:00:02]} 60. Rh7 {[%emt 0:00:01]} h1=Q {[%emt 0:00:04]}
0-1

[Event "GER-ch Blitz 2019"]
[Site "Magdeburg"]
[Date "2019.05.25"]
[Round "12.9"]
[White "Schulze, Marc"]
[Black "Hebbinghaus, Holger"]
[Result "0-1"]
[ECO "A41"]
[WhiteElo "2220"]
[BlackElo "2310"]
[Annotator "NA"]
[PlyCount "128"]
[EventDate "2019.05.25"]
[EventType "tourn"]
[EventCountry "GER"]
[Tiebreak "Number of wins+Number of black wins"]
[SourceTitle "playchess.com"]
[Source "ChessBase"]
[SourceQuality "1"]
[TimeControl "180+2"]

1. d4 {[%emt 0:00:00]} d6 {[%emt 0:00:00]} 2. Bf4 {[%emt 0:00:01]} g6 {[%emt 0:
00:07]} 3. h3 {[%emt 0:00:04]} Bg7 {[%emt 0:00:01]} 4. Nf3 {[%emt 0:00:02]} c5
{[%emt 0:00:13]} 5. e3 {[%emt 0:00:02]} Nf6 {[%emt 0:00:04]} 6. c3 {[%emt 0:00:
05]} Qb6 {[%emt 0:00:14]} 7. Qb3 {[%emt 0:00:02]} Be6 {[%emt 0:00:10]} 8. Qxb6
{[%emt 0:00:03]} axb6 {[%emt 0:00:01]} 9. a3 {[%emt 0:00:01]} O-O {[%emt 0:00:
11]} 10. Nbd2 {[%emt 0:00:02]} Nc6 {[%emt 0:00:04]} 11. Bc4 {[%emt 0:00:07]}
Bxc4 {[%emt 0:00:15]} 12. Nxc4 {[%emt 0:00:02]} b5 {[%emt 0:00:03]} 13. Ncd2 {
[%emt 0:00:11]} b4 {[%emt 0:00:05]} 14. cxb4 {[%emt 0:00:01]} Nxb4 {[%emt 0:00:
20]} 15. Ke2 {[%emt 0:00:12]} Nbd5 {[%emt 0:00:04]} 16. Bh2 {[%emt 0:00:07]}
cxd4 {[%emt 0:00:05]} 17. Nxd4 {[%emt 0:00:03]} Rfc8 {[%emt 0:00:08]} 18. Rhc1
{[%emt 0:00:03]} Nd7 {[%emt 0:00:06]} 19. N2b3 {[%emt 0:00:14]} Nc5 {[%emt 0:
00:17]} 20. Rab1 {[%emt 0:00:12]} Nxb3 {[%emt 0:00:28]} 21. Nxb3 {[%emt 0:00:
01]} Nb6 {[%emt 0:00:02]} 22. Kd3 {[%emt 0:00:15]} Na4 {[%emt 0:00:12]} 23.
Rxc8+ Rxc8 {[%emt 0:00:01]} 24. Nd4 {[%emt 0:00:07]} e5 {[%emt 0:00:09]} 25.
Ne2 {[%emt 0:00:10]} Nxb2+ {[%emt 0:00:06]} 26. Ke4 {[%emt 0:00:14]} Rc2 {
[%emt 0:00:05]} 27. Nc3 {[%emt 0:00:05]} Rxc3 {[%emt 0:00:07]} 28. Rxb2 {
[%emt 0:00:02]} Rxa3 {[%emt 0:00:02]} 29. Rxb7 {[%emt 0:00:03]} h5 {[%emt 0:00:
04]} 30. g4 {[%emt 0:00:10]} Ra2 {[%emt 0:00:04]} 31. Bg3 {[%emt 0:00:03]} Ra4+
{[%emt 0:00:02]} 32. Kd5 {[%emt 0:00:04]} hxg4 {[%emt 0:00:02]} 33. hxg4 {
[%emt 0:00:01]} Rxg4 {[%emt 0:00:02]} 34. Kxd6 {[%emt 0:00:01]} e4 {[%emt 0:00:
02]} 35. Rb8+ {[%emt 0:00:08]} Kh7 {[%emt 0:00:03]} 36. Ke7 {[%emt 0:00:00]} f5
{[%emt 0:00:02]} 37. Kf7 {[%emt 0:00:04]} Rg5 {[%emt 0:00:03]} 38. Rb7 {
[%emt 0:00:04]} Rh5 {[%emt 0:00:03]} 39. Ke8 {[%emt 0:00:03]} Kg8 {[%emt 0:00:
01]} 40. Ke7 {[%emt 0:00:04]} Rh1 {[%emt 0:00:03]} 41. Ke6 {[%emt 0:00:04]} Ra1
{[%emt 0:00:02]} 42. Rb8+ {[%emt 0:00:01]} Kh7 {[%emt 0:00:01]} 43. Rb7 {
[%emt 0:00:06]} Ra6+ {[%emt 0:00:02]} 44. Kd5 {[%emt 0:00:04]} Kg8 {[%emt 0:00:
03]} 45. Bd6 {[%emt 0:00:03]} Bf6 {[%emt 0:00:07]} 46. Ke6 {[%emt 0:00:04]} Bc3
{[%emt 0:00:02]} 47. Kd7 {[%emt 0:00:01]} Kf7 {[%emt 0:00:02]} 48. Bf4 {
[%emt 0:00:03]} Bf6 49. Bd6 {[%emt 0:00:07]} g5 {[%emt 0:00:04]} 50. Rb5 {
[%emt 0:00:04]} Kg6 {[%emt 0:00:01]} 51. Ke6 {[%emt 0:00:02]} Bg7 {[%emt 0:00:
02]} 52. Ke7 {[%emt 0:00:04]} Bf8+ {[%emt 0:00:01]} 53. Kxf8 Rxd6 {[%emt 0:00:
01]} 54. Ke7 {[%emt 0:00:02]} Rd2 {[%emt 0:00:01]} 55. Rb6+ {[%emt 0:00:03]}
Kh5 {[%emt 0:00:01]} 56. Kf6 {[%emt 0:00:00]} Kg4 {[%emt 0:00:00]} 57. Rb1 {
[%emt 0:00:04]} Rxf2 {[%emt 0:00:02]} 58. Rg1+ {[%emt 0:00:00]} Kf3 {[%emt 0:
00:02]} 59. Kxf5 {[%emt 0:00:07]} Kxe3+ {[%emt 0:00:01]} 60. Kxg5 {[%emt 0:00:
01]} Rf8 {[%emt 0:00:03]} 61. Re1+ {[%emt 0:00:02]} Kd3 {[%emt 0:00:01]} 62.
Rd1+ {[%emt 0:00:01]} Ke2 63. Rd7 {[%emt 0:00:01]} e3 {[%emt 0:00:02]} 64. Kg4
{[%emt 0:00:01]} Kf2 {[%emt 0:00:01]} 0-1

[Event "GER-ch Blitz 2019"]
[Site "Magdeburg"]
[Date "2019.05.25"]
[Round "12.10"]
[White "Krause, Benedict"]
[Black "Zelbel, Patrick"]
[Result "1-0"]
[ECO "C50"]
[WhiteElo "2434"]
[BlackElo "2439"]
[Annotator "NA"]
[PlyCount "119"]
[EventDate "2019.05.25"]
[EventType "tourn"]
[EventCountry "GER"]
[Tiebreak "Number of wins+Number of black wins"]
[SourceTitle "playchess.com"]
[Source "ChessBase"]
[SourceQuality "1"]
[TimeControl "180+2"]

1. e4 {[%emt 0:00:00]} e5 {[%emt 0:00:00]} 2. Nf3 {[%emt 0:00:00]} Nc6 {
[%emt 0:00:00]} 3. Bc4 {[%emt 0:00:01]} Nf6 {[%emt 0:00:00]} 4. d3 {[%emt 0:00:
01]} Bc5 {[%emt 0:00:01]} 5. O-O {[%emt 0:00:01]} O-O {[%emt 0:00:01]} 6. Nbd2
{[%emt 0:00:02]} h6 {[%emt 0:00:12]} 7. h3 {[%emt 0:00:06]} a6 {[%emt 0:00:07]}
8. c3 {[%emt 0:00:03]} d6 {[%emt 0:00:19]} 9. Bb3 {[%emt 0:00:02]} Re8 {
[%emt 0:00:03]} 10. Re1 {[%emt 0:00:02]} Be6 {[%emt 0:00:19]} 11. Bxe6 {
[%emt 0:00:05]} Rxe6 {[%emt 0:00:01]} 12. b4 {[%emt 0:00:02]} Ba7 {[%emt 0:00:
02]} 13. Qc2 {[%emt 0:00:01]} d5 {[%emt 0:00:09]} 14. Nb3 {[%emt 0:00:01]} dxe4
{[%emt 0:00:28]} 15. dxe4 {[%emt 0:00:02]} Nh5 {[%emt 0:00:01]} 16. a4 {
[%emt 0:00:44]} Qf6 {[%emt 0:00:12]} 17. b5 {[%emt 0:00:11]} Ne7 {[%emt 0:00:
07]} 18. c4 {[%emt 0:00:46]} Rd8 {[%emt 0:00:22]} 19. c5 {[%emt 0:00:04]} c6 {
[%emt 0:00:01]} 20. b6 {[%emt 0:00:08]} Bb8 {[%emt 0:00:01]} 21. Be3 {[%emt 0:
00:03]} Ng6 {[%emt 0:00:17]} 22. Rad1 {[%emt 0:00:11]} Nhf4 {[%emt 0:00:12]}
23. Bxf4 {[%emt 0:00:16]} Nxf4 {[%emt 0:00:05]} 24. Rxd8+ {[%emt 0:00:13]} Qxd8
{[%emt 0:00:01]} 25. Rd1 {[%emt 0:00:01]} Qf6 {[%emt 0:00:01]} 26. Kh2 {
[%emt 0:00:02]} Qg6 {[%emt 0:00:04]} 27. g3 {[%emt 0:00:04]} Qf6 {[%emt 0:00:
17]} 28. Nh4 {[%emt 0:00:15]} g6 {[%emt 0:00:15]} 29. Rd7 {[%emt 0:00:03]} Re7
{[%emt 0:00:14]} 30. Rd8+ {[%emt 0:00:01]} Kg7 {[%emt 0:00:01]} 31. Rxb8 {
[%emt 0:00:01]} Rd7 {[%emt 0:00:01]} 32. Rc8 {[%emt 0:00:14]} Nd3 {[%emt 0:00:
01]} 33. Kg1 {[%emt 0:00:06]} Qe6 {[%emt 0:00:07]} 34. Rc7 {[%emt 0:00:04]} Rd8
{[%emt 0:00:01]} 35. Rxb7 {[%emt 0:00:03]} Qxh3 {[%emt 0:00:01]} 36. Rc7 {
[%emt 0:00:05]} Nb2 {[%emt 0:00:02]} 37. Nd2 {[%emt 0:00:06]} Nd3 {[%emt 0:00:
02]} 38. Nf1 {[%emt 0:00:01]} Ne1 {[%emt 0:00:03]} 39. Qe2 {[%emt 0:00:01]} Nd3
{[%emt 0:00:02]} 40. b7 {[%emt 0:00:01]} Nxc5 {[%emt 0:00:03]} 41. Rc8 {
[%emt 0:00:02]} Nxb7 {[%emt 0:00:02]} 42. Rxd8 {[%emt 0:00:00]} Nxd8 {[%emt 0:
00:01]} 43. Qxa6 {[%emt 0:00:01]} Qe6 {[%emt 0:00:03]} 44. Qb6 {[%emt 0:00:02]}
Qd6 {[%emt 0:00:02]} 45. a5 {[%emt 0:00:00]} Ne6 {[%emt 0:00:01]} 46. a6 {
[%emt 0:00:01]} Nc7 {[%emt 0:00:01]} 47. a7 {[%emt 0:00:01]} Qd7 {[%emt 0:00:
04]} 48. Qb8 {[%emt 0:00:02]} c5 {[%emt 0:00:01]} 49. a8=Q {[%emt 0:00:03]}
Nxa8 {[%emt 0:00:01]} 50. Qxa8 Qd4 {[%emt 0:00:03]} 51. Qd5 {[%emt 0:00:02]}
Qc3 {[%emt 0:00:01]} 52. Kg2 {[%emt 0:00:02]} f6 {[%emt 0:00:03]} 53. Qd7+ {
[%emt 0:00:02]} Kg8 {[%emt 0:00:01]} 54. Nxg6 {[%emt 0:00:01]} Qc2 {[%emt 0:00:
01]} 55. Qd5+ {[%emt 0:00:05]} Kg7 {[%emt 0:00:01]} 56. Nh4 {[%emt 0:00:00]} c4
{[%emt 0:00:01]} 57. Nf5+ {[%emt 0:00:01]} Kf8 {[%emt 0:00:02]} 58. Qd8+ {
[%emt 0:00:02]} Kf7 {[%emt 0:00:01]} 59. Qe7+ {[%emt 0:00:00]} Kg8 {[%emt 0:00:
01]} 60. Qg7# 1-0

[Event "GER-ch Blitz 2019"]
[Site "Magdeburg"]
[Date "2019.05.25"]
[Round "12.11"]
[White "Kopylov, Daniel"]
[Black "Schneider, Ilja"]
[Result "1-0"]
[ECO "B07"]
[WhiteElo "2263"]
[BlackElo "2494"]
[Annotator "ChessBase"]
[PlyCount "94"]
[EventDate "2019.05.25"]
[EventType "tourn"]
[EventCountry "GER"]
[Tiebreak "Number of wins+Number of black wins"]
[SourceTitle "playchess.com"]
[Source "ChessBase"]
[SourceQuality "1"]
[TimeControl "180+2"]

1. e4 {[%emt 0:00:00]} d6 {[%emt 0:00:00]} 2. d4 {[%emt 0:00:00]} Nf6 {[%emt 0:
00:00]} 3. Nc3 {[%emt 0:00:01]} e5 {[%emt 0:00:01]} 4. Nf3 {[%emt 0:00:04]}
exd4 {[%emt 0:00:00]} 5. Nxd4 {[%emt 0:00:01]} Be7 {[%emt 0:00:01]} 6. Bc4 {
[%emt 0:00:02]} O-O {[%emt 0:00:01]} 7. O-O {[%emt 0:00:01]} Re8 {[%emt 0:00:
01]} 8. Re1 {[%emt 0:00:02]} Bf8 {[%emt 0:00:01]} 9. h3 {[%emt 0:00:02]} Nbd7 {
[%emt 0:00:01]} 10. a4 {[%emt 0:00:01]} a5 {[%emt 0:00:00]} 11. Bf4 {[%emt 0:
00:14]} Ne5 {[%emt 0:00:02]} 12. Bxe5 {[%emt 0:00:08]} dxe5 {[%emt 0:00:18]}
13. Nf3 {[%emt 0:00:02]} Qxd1 {[%emt 0:01:08]} 14. Raxd1 {[%emt 0:00:03]} c6
15. Ng5 {[%emt 0:00:09]} Be6 {[%emt 0:00:23]} 16. Bxe6 {[%emt 0:00:29]} fxe6 {
[%emt 0:00:01]} 17. Nf3 {[%emt 0:00:01]} Bb4 {[%emt 0:00:05]} 18. Nxe5 {
[%emt 0:00:04]} Rad8 {[%emt 0:00:00]} 19. Nd3 {[%emt 0:00:18]} Bxc3 {[%emt 0:
00:30]} 20. bxc3 {[%emt 0:00:02]} Rd7 {[%emt 0:00:01]} 21. Nc5 {[%emt 0:00:06]}
Rxd1 {[%emt 0:00:01]} 22. Rxd1 {[%emt 0:00:01]} b6 {[%emt 0:00:02]} 23. Nd7 {
[%emt 0:00:30]} Nxe4 {[%emt 0:00:01]} 24. Nxb6 {[%emt 0:00:02]} Nxc3 {[%emt 0:
00:12]} 25. Rd6 {[%emt 0:00:02]} c5 {[%emt 0:00:06]} 26. Rc6 {[%emt 0:00:21]}
Rb8 {[%emt 0:00:21]} 27. Rxc5 {[%emt 0:00:23]} Rxb6 {[%emt 0:00:24]} 28. Rxc3 {
[%emt 0:00:02]} Rb4 {[%emt 0:00:01]} 29. Ra3 {[%emt 0:00:28]} Kf7 {[%emt 0:00:
01]} 30. g3 {[%emt 0:00:03]} Kf6 {[%emt 0:00:00]} 31. Kg2 {[%emt 0:00:04]} Ke5
{[%emt 0:00:02]} 32. h4 {[%emt 0:00:02]} h5 {[%emt 0:00:02]} 33. Rc3 {[%emt 0:
00:06]} Kd6 {[%emt 0:00:06]} 34. Ra3 {[%emt 0:00:06]} g6 {[%emt 0:00:02]} 35.
Kf3 {[%emt 0:00:02]} Kd5 {[%emt 0:00:05]} 36. Ke3 {[%emt 0:00:03]} Ke5 {
[%emt 0:00:03]} 37. Kd2 {[%emt 0:00:02]} Kd5 {[%emt 0:00:02]} 38. Rd3+ {
[%emt 0:00:05]} Ke5 {[%emt 0:00:03]} 39. Re3+ {[%emt 0:00:00]} Kd5 {[%emt 0:00:
03]} 40. Rd3+ {[%emt 0:00:01]} Ke5 {[%emt 0:00:02]} 41. Re3+ {[%emt 0:00:01]}
Kd6 {[%emt 0:00:05]} 42. Ra3 {[%emt 0:00:01]} Kd5 {[%emt 0:00:02]} 43. Kc1 {
[%emt 0:00:02]} e5 {[%emt 0:00:03]} 44. c3 {[%emt 0:00:01]} Re4 {[%emt 0:00:02]
} 45. Ra2 {[%emt 0:00:01]} Kc4 {[%emt 0:00:02]} 46. Kd2 {[%emt 0:00:03]} Kd5
47. Ra1 Rc4 1-0

[Event "GER-ch Blitz 2019"]
[Site "Magdeburg"]
[Date "2019.05.25"]
[Round "12.12"]
[White "Carow, Johannes"]
[Black "Schmaltz, Roland"]
[Result "0-1"]
[ECO "A45"]
[WhiteElo "2445"]
[BlackElo "2461"]
[Annotator "ChessBase"]
[PlyCount "83"]
[EventDate "2019.05.25"]
[EventType "tourn"]
[EventCountry "GER"]
[Tiebreak "Number of wins+Number of black wins"]
[SourceTitle "playchess.com"]
[Source "ChessBase"]
[SourceQuality "1"]
[TimeControl "180+2"]

1. d4 {[%emt 0:00:00]} Nf6 {[%emt 0:00:00]} 2. Bg5 {[%emt 0:00:01]} e6 {
[%emt 0:00:01]} 3. Nd2 {[%emt 0:00:01]} c5 {[%emt 0:00:05]} 4. e3 {[%emt 0:00:
03]} b6 {[%emt 0:00:02]} 5. Bd3 {[%emt 0:00:07]} Bb7 {[%emt 0:00:02]} 6. Ngf3 {
[%emt 0:00:01]} Be7 {[%emt 0:00:04]} 7. O-O {[%emt 0:00:05]} cxd4 {[%emt 0:00:
02]} 8. exd4 {[%emt 0:00:02]} O-O {[%emt 0:00:02]} 9. Re1 {[%emt 0:00:04]} d6 {
[%emt 0:00:01]} 10. a4 {[%emt 0:00:05]} a6 {[%emt 0:00:01]} 11. c3 {[%emt 0:00:
10]} Nbd7 {[%emt 0:00:01]} 12. Qb3 {[%emt 0:00:05]} Re8 {[%emt 0:00:10]} 13.
Bf1 {[%emt 0:00:35]} Qc7 {[%emt 0:00:03]} 14. c4 {[%emt 0:00:10]} h6 {[%emt 0:
00:05]} 15. Bf4 {[%emt 0:00:08]} Bf8 {[%emt 0:00:05]} 16. a5 {[%emt 0:00:13]}
bxa5 {[%emt 0:00:07]} 17. Qa2 {[%emt 0:00:02]} e5 {[%emt 0:00:06]} 18. Be3 {
[%emt 0:00:07]} Ng4 {[%emt 0:00:36]} 19. Qxa5 {[%emt 0:00:18]} Qc8 {[%emt 0:00:
05]} 20. b4 {[%emt 0:00:13]} Nxe3 {[%emt 0:00:17]} 21. Rxe3 {[%emt 0:00:03]} e4
{[%emt 0:00:09]} 22. Nh4 {[%emt 0:00:20]} g6 {[%emt 0:00:03]} 23. d5 {[%emt 0:
00:12]} Nf6 {[%emt 0:00:02]} 24. g3 {[%emt 0:00:06]} h5 {[%emt 0:00:04]} 25. f4
{[%emt 0:00:12]} exf3 {[%emt 0:00:06]} 26. Rxf3 {[%emt 0:00:03]} Bg7 {[%emt 0:
00:06]} 27. Nb3 {[%emt 0:00:11]} Ng4 {[%emt 0:00:11]} 28. Rc1 {[%emt 0:00:07]}
Ne5 {[%emt 0:00:03]} 29. Rf2 {[%emt 0:00:01]} Bh6 {[%emt 0:00:12]} 30. Rc3 {
[%emt 0:00:03]} Bg5 {[%emt 0:00:04]} 31. Nf3 {[%emt 0:00:04]} Bd8 {[%emt 0:00:
08]} 32. Qa1 {[%emt 0:00:06]} Bf6 {[%emt 0:00:10]} 33. Nfd4 {[%emt 0:00:04]}
Ng4 {[%emt 0:00:04]} 34. Rff3 {[%emt 0:00:01]} Qd8 {[%emt 0:00:04]} 35. Bh3 {
[%emt 0:00:04]} Ne5 36. Rf2 Bc8 {[%emt 0:00:07]} 37. Qf1 {[%emt 0:00:02]} Bxh3
38. Qxh3 {[%emt 0:00:01]} Ng4 {[%emt 0:00:07]} 39. Rf1 {[%emt 0:00:00]} Qb6 {
[%emt 0:00:02]} 40. c5 {[%emt 0:00:03]} Qxb4 {[%emt 0:00:01]} 41. Rd3 {[%emt 0:
00:06]} Qc4 {[%emt 0:00:07]} 42. Rfd1 0-1

[Event "GER-ch Blitz 2019"]
[Site "Magdeburg"]
[Date "2019.05.25"]
[Round "12.13"]
[White "Stein, Robert"]
[Black "Schulz, Karsten"]
[Result "1-0"]
[ECO "D71"]
[WhiteElo "2318"]
[BlackElo "2227"]
[Annotator "NA"]
[PlyCount "91"]
[EventDate "2019.05.25"]
[EventType "tourn"]
[EventCountry "GER"]
[Tiebreak "Number of wins+Number of black wins"]
[SourceTitle "playchess.com"]
[Source "ChessBase"]
[SourceQuality "1"]
[TimeControl "180+2"]

1. d4 {[%emt 0:00:00]} Nf6 2. c4 g6 {[%emt 0:00:00]} 3. g3 {[%emt 0:00:01]} Bg7
{[%emt 0:00:01]} 4. Bg2 {[%emt 0:00:00]} O-O {[%emt 0:00:02]} 5. Nc3 {[%emt 0:
00:01]} c6 {[%emt 0:00:02]} 6. Nf3 {[%emt 0:00:02]} d5 {[%emt 0:00:02]} 7. cxd5
{[%emt 0:00:34]} cxd5 {[%emt 0:00:03]} 8. O-O {[%emt 0:00:02]} Ne4 {[%emt 0:00:
01]} 9. Qb3 {[%emt 0:00:05]} Nxc3 {[%emt 0:00:03]} 10. Qxc3 {[%emt 0:00:02]}
Nc6 {[%emt 0:00:01]} 11. Bf4 {[%emt 0:00:01]} Bg4 {[%emt 0:00:15]} 12. Ne5 {
[%emt 0:00:49]} Nxe5 {[%emt 0:00:16]} 13. dxe5 {[%emt 0:00:04]} Bxe2 {[%emt 0:
00:08]} 14. Rfe1 {[%emt 0:00:04]} Ba6 {[%emt 0:00:02]} 15. h4 {[%emt 0:00:11]}
e6 {[%emt 0:00:05]} 16. h5 {[%emt 0:00:01]} Rc8 {[%emt 0:00:07]} 17. Qd2 {
[%emt 0:00:02]} Qc7 {[%emt 0:00:13]} 18. Rac1 {[%emt 0:00:14]} Qb6 {[%emt 0:00:
03]} 19. Bg5 {[%emt 0:00:11]} Rxc1 {[%emt 0:00:13]} 20. Qxc1 {[%emt 0:00:01]}
Qc6 {[%emt 0:00:07]} 21. Qf4 {[%emt 0:00:08]} Rc8 {[%emt 0:00:09]} 22. h6 {
[%emt 0:00:04]} Bf8 {[%emt 0:00:06]} 23. b3 {[%emt 0:00:16]} Qc2 {[%emt 0:00:
12]} 24. Bh3 {[%emt 0:00:19]} Qc3 {[%emt 0:00:25]} 25. Re3 {[%emt 0:00:09]}
Qc1+ {[%emt 0:00:09]} 26. Kh2 {[%emt 0:00:02]} Rc2 {[%emt 0:00:10]} 27. Qf6 {
[%emt 0:00:14]} Rc7 {[%emt 0:00:42]} 28. Bxe6 {[%emt 0:00:03]} Qc6 {[%emt 0:00:
05]} 29. Bg4 {[%emt 0:00:07]} Qxf6 {[%emt 0:00:02]} 30. exf6 {[%emt 0:00:04]}
d4 {[%emt 0:00:03]} 31. Re8 {[%emt 0:00:01]} d3 {[%emt 0:00:04]} 32. Bd2 {
[%emt 0:00:03]} b6 {[%emt 0:00:07]} 33. Bb4 {[%emt 0:00:03]} Rc5 {[%emt 0:00:
01]} 34. Bxc5 {[%emt 0:00:02]} bxc5 {[%emt 0:00:00]} 35. Rd8 {[%emt 0:00:01]}
Bb5 {[%emt 0:00:03]} 36. Bf3 {[%emt 0:00:01]} a5 {[%emt 0:00:01]} 37. Be4 {
[%emt 0:00:01]} c4 {[%emt 0:00:02]} 38. bxc4 {[%emt 0:00:01]} Bxc4 {[%emt 0:00:
00]} 39. a3 {[%emt 0:00:00]} a4 {[%emt 0:00:02]} 40. Bxd3 Bb3 41. Bb5 {[%emt 0:
00:02]} Bc2 {[%emt 0:00:02]} 42. Ra8 {[%emt 0:00:03]} Bb3 {[%emt 0:00:04]} 43.
Bxa4 {[%emt 0:00:01]} Bd5 44. Rd8 {[%emt 0:00:02]} Be6 {[%emt 0:00:02]} 45. Bd7
{[%emt 0:00:01]} Bb3 {[%emt 0:00:02]} 46. a4 {[%emt 0:00:01]} 1-0

[Event "GER-ch Blitz 2019"]
[Site "Magdeburg"]
[Date "2019.05.25"]
[Round "12.14"]
[White "Stern, Rene"]
[Black "Zuyev, Igor"]
[Result "1-0"]
[ECO "A04"]
[WhiteElo "2538"]
[BlackElo "2447"]
[Annotator "ChessBase"]
[PlyCount "67"]
[EventDate "2019.05.25"]
[EventType "tourn"]
[EventCountry "GER"]
[Tiebreak "Number of wins+Number of black wins"]
[SourceTitle "playchess.com"]
[Source "ChessBase"]
[SourceQuality "1"]
[TimeControl "180+2"]

1. Nf3 {[%emt 0:00:00]} c5 {[%emt 0:00:00]} 2. c4 {[%emt 0:00:00]} Nc6 {
[%emt 0:00:03]} 3. Nc3 {[%emt 0:00:01]} g6 {[%emt 0:00:02]} 4. e3 {[%emt 0:00:
04]} Bg7 {[%emt 0:00:03]} 5. d4 {[%emt 0:00:01]} cxd4 {[%emt 0:00:02]} 6. exd4
{[%emt 0:00:01]} Nf6 {[%emt 0:00:16]} 7. d5 {[%emt 0:00:01]} Nb8 {[%emt 0:00:
02]} 8. Bd3 {[%emt 0:00:05]} a5 {[%emt 0:00:01]} 9. O-O {[%emt 0:00:02]} Na6 {
[%emt 0:00:01]} 10. Be3 {[%emt 0:00:07]} b6 {[%emt 0:00:01]} 11. d6 {[%emt 0:
00:14]} exd6 {[%emt 0:00:12]} 12. Nb5 {[%emt 0:00:02]} O-O {[%emt 0:00:12]} 13.
Nxd6 {[%emt 0:00:01]} Nc5 {[%emt 0:00:05]} 14. Be2 {[%emt 0:00:16]} Ne8 {
[%emt 0:00:06]} 15. Nxc8 {[%emt 0:00:20]} Rxc8 {[%emt 0:00:08]} 16. Bd4 {
[%emt 0:00:01]} Nc7 {[%emt 0:00:18]} 17. Bxg7 {[%emt 0:00:03]} Kxg7 {[%emt 0:
00:01]} 18. Nd4 {[%emt 0:00:14]} N7e6 {[%emt 0:00:06]} 19. Nb5 {[%emt 0:00:04]}
Qf6 {[%emt 0:00:15]} 20. b3 {[%emt 0:00:01]} Rfd8 {[%emt 0:00:20]} 21. Bf3 {
[%emt 0:00:01]} d6 {[%emt 0:00:13]} 22. Qd2 {[%emt 0:00:10]} Nf4 {[%emt 0:00:
20]} 23. Rad1 {[%emt 0:00:07]} Nfd3 {[%emt 0:00:09]} 24. Qc3 {[%emt 0:00:24]}
Ne5 {[%emt 0:00:10]} 25. Bd5 {[%emt 0:00:03]} Ng4 {[%emt 0:00:30]} 26. h3 {
[%emt 0:00:04]} Qxc3 {[%emt 0:00:02]} 27. Nxc3 {[%emt 0:00:02]} Nf6 {[%emt 0:
00:03]} 28. Bf3 {[%emt 0:00:06]} Rc7 {[%emt 0:00:03]} 29. Rd2 {[%emt 0:00:07]}
Re7 {[%emt 0:00:01]} 30. Rfd1 {[%emt 0:00:01]} Re6 {[%emt 0:00:05]} 31. Rd4 {
[%emt 0:00:06]} h6 {[%emt 0:00:07]} 32. g3 {[%emt 0:00:11]} h5 {[%emt 0:00:01]}
33. Kg2 {[%emt 0:00:01]} Nb7 {[%emt 0:00:04]} 34. Bxb7 {[%emt 0:00:02]} 1-0